[Event "FIDE Grand Swiss 2023"]
[Site "Villa Marina, Douglas, Isle of Man"]
[Date "2023.10.30"]
[Round "6.2"]
[White "Yu, Yangyi"]
[Black "Erigaisi, Arjun"]
[Result "1/2-1/2"]
[WhiteElo "2720"]
[BlackElo "2712"]
[EventDate "2023.10.25"]
[ECO "C42"]
[PlyCount "60"]
[BlackFideId "35009192"]
[TimeControl "40/100 + 20/50 + 15 + 30s/move"]
[WhiteFideId "8603820"]

1.e4 {[%clk 01:40:56] [%emt 00:00:03]} 1...e5 {[%clk 01:40:51] [%emt 00:00:10]} 
2.Nf3 {[%clk 01:41:17] [%emt 00:00:09]} 2...Nf6 {[%clk 01:41:15] [%emt
00:00:05]} 3.Nxe5 {[%clk 01:39:32] [%emt 00:02:16]} 3...d6 {[%clk 01:41:39]
[%emt 00:00:06]} 4.Nf3 {[%clk 01:38:45] [%emt 00:01:17]} 4...Nxe4 {[%clk
01:42:02] [%emt 00:00:06]} 5.d4 {[%clk 01:36:57] [%emt 00:02:19]} 5...d5 {[%clk
01:41:32] [%emt 00:01:00]} 6.Bd3 {[%clk 01:37:11] [%emt 00:00:15]} 6...Bd6 
{[%clk 01:41:55] [%emt 00:00:06]} 7.O-O {[%clk 01:37:26] [%emt 00:00:16]} 
7...O-O {[%clk 01:42:20] [%emt 00:00:05]} 8.c4 {[%clk 01:35:04] [%emt 00:02:53]} 
8...c6 {[%clk 01:42:38] [%emt 00:00:11]} 9.Qc2 {[%clk 01:32:15] [%emt 00:03:19]} 
9...Na6 {[%clk 01:39:55] [%emt 00:03:14]} 10.a3 {[%clk 01:29:40] [%emt
00:03:05]} 10...Bg4 {[%clk 01:40:12] [%emt 00:00:12]} 11.Ne5 {[%clk 01:28:22]
[%emt 00:01:49]} 11...Bf5 {[%clk 01:40:15] [%emt 00:00:26]} 12.b4 {[%clk
01:23:40] [%emt 00:05:13]} 12...Nc7 {[%clk 01:35:02] [%emt 00:05:42]} 13.Nc3 
{[%clk 01:15:03] [%emt 00:09:07]} 13...a5 {[%clk 01:34:19] [%emt 00:01:14]} 
14.bxa5 {[%clk 01:07:52] [%emt 00:07:41]} 14...Ne6 {[%clk 01:27:47] [%emt
00:07:01]} 15.Be3 {[%clk 01:07:14] [%emt 00:01:08]} 15...c5 {[%clk 01:19:29]
[%emt 00:08:49]} 16.cxd5 {[%clk 00:44:36] [%emt 00:23:09]} 16...Nxd4 {[%clk
01:17:53] [%emt 00:02:05]} 17.Bxd4 {[%clk 00:43:19] [%emt 00:01:46]} 17...cxd4 
{[%clk 01:18:16] [%emt 00:00:07]} 18.Bxe4 {[%clk 00:42:33] [%emt 00:01:16]} 
18...Bxe4 {[%clk 01:17:35] [%emt 00:01:11]} 19.Qxe4 {[%clk 00:42:28] [%emt
00:00:35]} 19...Bxe5 {[%clk 01:09:40] [%emt 00:08:24]} 20.Qxe5 {[%clk 00:41:17]
[%emt 00:01:42]} 20...dxc3 {[%clk 01:09:11] [%emt 00:00:59]} 21.Qxc3 {[%clk
00:41:38] [%emt 00:00:08]} 21...Qxd5 {[%clk 01:09:36] [%emt 00:00:05]} 22.Rfd1 
{[%clk 00:39:43] [%emt 00:02:25]} 22...Qxa5 {[%clk 01:08:56] [%emt 00:01:11]} 
23.Qxa5 {[%clk 00:40:10] [%emt 00:00:03]} 23...Rxa5 {[%clk 01:09:20] [%emt
00:00:05]} 24.Rab1 {[%clk 00:40:35] [%emt 00:00:05]} 24...Rxa3 {[%clk 01:09:45]
[%emt 00:00:05]} 25.Rxb7 {[%clk 00:41:00] [%emt 00:00:05]} 25...g6 {[%clk
01:10:10] [%emt 00:00:05]} 26.g3 {[%clk 00:41:26] [%emt 00:00:04]} 26...h5 
{[%clk 01:10:34] [%emt 00:00:05]} 27.h4 {[%clk 00:41:51] [%emt 00:00:05]} 
27...Kg7 {[%clk 01:11:00] [%emt 00:00:04]} 28.Kg2 {[%clk 00:42:12] [%emt
00:00:09]} 28...Ra6 {[%clk 01:11:24] [%emt 00:00:05]} 29.Rbd7 {[%clk 00:42:37]
[%emt 00:00:05]} 29...Rf6 {[%clk 01:11:48] [%emt 00:00:06]} 30.R1d3 {[%clk
00:43:04] [%emt 00:00:04]} 30...Re8 {[%clk 01:12:11] [%emt 00:00:07]} 1/2-1/2

[Event "FIDE Grand Swiss 2023"]
[Site "Villa Marina, Douglas, Isle of Man"]
[Date "2023.10.30"]
[Round "6.3"]
[White "Caruana, Fabiano"]
[Black "Najer, Evgeniy"]
[Result "1-0"]
[WhiteElo "2786"]
[BlackElo "2648"]
[EventDate "2023.10.25"]
[ECO "C50"]
[PlyCount "73"]
[BlackFideId "4118987"]
[TimeControl "40/100 + 20/50 + 15 + 30s/move"]
[WhiteFideId "2020009"]

1.e4 {[%clk 01:40:57] [%emt 00:00:03]} 1...e5 {[%clk 01:40:36] [%emt 00:00:24]} 
2.Nf3 {[%clk 01:41:22] [%emt 00:00:06]} 2...Nc6 {[%clk 01:41:00] [%emt
00:00:05]} 3.Bc4 {[%clk 01:41:48] [%emt 00:00:04]} 3...Bc5 {[%clk 01:41:14]
[%emt 00:00:16]} 4.d3 {[%clk 01:42:05] [%emt 00:00:14]} 4...Nf6 {[%clk 01:41:37]
[%emt 00:00:06]} 5.Bg5 {[%clk 01:42:30] [%emt 00:00:05]} 5...h6 {[%clk 01:39:30]
[%emt 00:02:37]} 6.Bh4 {[%clk 01:42:42] [%emt 00:00:18]} 6...Be7 {[%clk
01:38:23] [%emt 00:01:37]} 7.Bg3 {[%clk 01:42:34] [%emt 00:00:38]} 7...d6 
{[%clk 01:37:08] [%emt 00:01:45]} 8.a4 {[%clk 01:42:44] [%emt 00:00:20]} 
8...O-O {[%clk 01:37:20] [%emt 00:00:19]} 9.Nbd2 {[%clk 01:42:45] [%emt
00:00:28]} 9...g6 {[%clk 01:30:17] [%emt 00:07:34]} 10.a5 {[%clk 01:42:44] [%emt
00:00:30]} 10...Rb8 {[%clk 01:25:25] [%emt 00:05:23]} 11.h3 {[%clk 01:41:37]
[%emt 00:01:37]} 11...b5 {[%clk 01:19:41] [%emt 00:06:14]} 12.axb6 {[%clk
01:40:38] [%emt 00:01:29]} 12...axb6 {[%clk 01:18:23] [%emt 00:01:47]} 13.Bh2 
{[%clk 01:34:11] [%emt 00:06:57]} 13...Bd7 {[%clk 01:14:15] [%emt 00:04:38]} 
14.O-O {[%clk 01:33:08] [%emt 00:01:33]} 14...Nh5 {[%clk 00:41:52] [%emt
00:32:51]} 15.Re1 {[%clk 01:20:31] [%emt 00:13:09]} 15...Bg5 {[%clk 00:40:42]
[%emt 00:01:40]} 16.Nf1 {[%clk 01:20:53] [%emt 00:00:08]} 16...Bf4 {[%clk
00:39:59] [%emt 00:01:14]} 17.Ne3 {[%clk 01:06:02] [%emt 00:15:21]} 17...Bxh2+ 
{[%clk 00:35:34] [%emt 00:04:54]} 18.Kxh2 {[%clk 01:03:52] [%emt 00:02:40]} 
18...Nd4 {[%clk 00:31:35] [%emt 00:04:29]} 19.Nxd4 {[%clk 00:58:08] [%emt
00:06:14]} 19...exd4 {[%clk 00:32:02] [%emt 00:00:03]} 20.Ng4 {[%clk 00:58:24]
[%emt 00:00:14]} 20...Kg7 {[%clk 00:27:32] [%emt 00:05:00]} 21.Ra7 {[%clk
00:46:19] [%emt 00:12:35]} 21...Ra8 {[%clk 00:25:51] [%emt 00:02:11]} 22.Rxa8 
{[%clk 00:46:18] [%emt 00:00:32]} 22...Qxa8 {[%clk 00:26:20] [%emt 00:00:01]} 
23.g3 {[%clk 00:40:17] [%emt 00:06:30]} 23...Re8 {[%clk 00:18:07] [%emt
00:08:43]} 24.e5 {[%clk 00:25:22] [%emt 00:15:26]} 24...dxe5 {[%clk 00:17:56]
[%emt 00:00:41]} 25.Nxe5 {[%clk 00:24:40] [%emt 00:01:12]} 25...Qa5 {[%clk
00:14:13] [%emt 00:04:12]} 26.Re4 {[%clk 00:16:49] [%emt 00:08:21]} 26...Nf6 
{[%clk 00:09:02] [%emt 00:05:41]} 27.Nxd7 {[%clk 00:16:24] [%emt 00:00:56]} 
27...Nxe4 {[%clk 00:09:30]} 28.dxe4 {[%clk 00:16:49] [%emt 00:00:05]} 28...Rxe4 
{[%clk 00:09:58] [%emt 00:00:02]} 29.Qf3 {[%clk 00:15:57] [%emt 00:01:22]} 
29...Qf5 {[%clk 00:08:41] [%emt 00:01:47]} 30.Qxf5 {[%clk 00:16:23] [%emt
00:00:04]} 30...gxf5 {[%clk 00:09:10] [%emt 00:00:01]} 31.Nb8 {[%clk 00:11:35]
[%emt 00:05:18]} 31...f4 {[%clk 00:04:53] [%emt 00:04:47]} 32.g4 {[%clk
00:10:39] [%emt 00:01:26]} 32...h5 {[%clk 00:00:44] [%emt 00:04:38]} 33.Nc6 
{[%clk 00:09:35] [%emt 00:01:35]} 33...hxg4 {[%clk 00:01:04] [%emt 00:00:10]} 
34.hxg4 {[%clk 00:10:02] [%emt 00:00:04]} 34...Kf6 {[%clk 00:00:50] [%emt
00:00:43]} 35.Kg2 {[%clk 00:10:00] [%emt 00:00:32]} 35...Re1 {[%clk 00:00:36]
[%emt 00:00:45]} 36.Kf3 {[%clk 00:10:04] [%emt 00:00:26]} 36...Rd1 {[%clk
00:00:41] [%emt 00:00:24]} 37.Bd3 {[%clk 00:09:47] [%emt 00:00:48]} 1-0

[Event "FIDE Grand Swiss 2023"]
[Site "Villa Marina, Douglas, Isle of Man"]
[Date "2023.10.30"]
[Round "6.4"]
[White "Artemiev, Vladislav"]
[Black "Firouzja, Alireza"]
[Result "1/2-1/2"]
[WhiteElo "2697"]
[BlackElo "2777"]
[EventDate "2023.10.25"]
[ECO "C78"]
[PlyCount "133"]
[BlackFideId "12573981"]
[TimeControl "40/100 + 20/50 + 15 + 30s/move"]
[WhiteFideId "24101605"]

1.e4 {[%clk 01:40:13] [%emt 00:00:45]} 1...e5 {[%clk 01:39:49] [%emt 00:01:12]} 
2.Nf3 {[%clk 01:40:16] [%emt 00:00:26]} 2...Nc6 {[%clk 01:40:12] [%emt
00:00:08]} 3.Bb5 {[%clk 01:40:09] [%emt 00:00:37]} 3...a6 {[%clk 01:40:32] [%emt
00:00:11]} 4.Ba4 {[%clk 01:40:23] [%emt 00:00:15]} 4...Nf6 {[%clk 01:40:53]
[%emt 00:00:09]} 5.O-O {[%clk 01:40:06] [%emt 00:00:47]} 5...Bc5 {[%clk
01:40:30] [%emt 00:00:54]} 6.c3 {[%clk 01:29:35] [%emt 00:11:00]} 6...b5 {[%clk
01:40:48] [%emt 00:00:12]} 7.Bc2 {[%clk 01:27:34] [%emt 00:02:30]} 7...d5 
{[%clk 01:40:46] [%emt 00:00:34]} 8.d4 {[%clk 01:22:57] [%emt 00:05:07]} 
8...dxe4 {[%clk 01:40:27] [%emt 00:00:48]} 9.dxc5 {[%clk 00:59:30] [%emt
00:23:57]} 9...Qxd1 {[%clk 01:37:02] [%emt 00:03:55]} 10.Bxd1 {[%clk 00:59:41]
[%emt 00:00:19]} 10...exf3 {[%clk 01:37:23] [%emt 00:00:09]} 11.Bxf3 {[%clk
01:00:05] [%emt 00:00:05]} 11...e4 {[%clk 01:26:09] [%emt 00:11:45]} 12.Re1 
{[%clk 00:58:45] [%emt 00:01:50]} 12...O-O {[%clk 01:22:31] [%emt 00:04:08]} 
13.Be2 {[%clk 00:58:42] [%emt 00:00:33]} 13...Re8 {[%clk 01:07:14] [%emt
00:15:47]} 14.Bf4 {[%clk 00:36:15] [%emt 00:22:57]} 14...Nd5 {[%clk 01:04:10]
[%emt 00:03:33]} 15.Bg3 {[%clk 00:36:37] [%emt 00:00:09]} 15...Ne5 {[%clk
00:36:08] [%emt 00:28:31]} 16.Na3 {[%clk 00:23:46] [%emt 00:13:21]} 16...Bg4 
{[%clk 00:19:00] [%emt 00:17:38]} 17.Bxe5 {[%clk 00:13:19] [%emt 00:10:58]} 
17...Bxe2 {[%clk 00:19:24] [%emt 00:00:06]} 18.Bxc7 {[%clk 00:13:41] [%emt
00:00:08]} 18...Bd3 {[%clk 00:19:35] [%emt 00:00:18]} 19.Bd6 {[%clk 00:13:57]
[%emt 00:00:14]} 19...g5 {[%clk 00:14:49] [%emt 00:05:16]} 20.Rac1 {[%clk
00:10:20] [%emt 00:04:07]} 20...f5 {[%clk 00:11:19] [%emt 00:04:00]} 21.Nc2 
{[%clk 00:09:48] [%emt 00:01:03]} 21...Kf7 {[%clk 00:03:37] [%emt 00:08:12]} 
22.Nd4 {[%clk 00:09:48] [%emt 00:00:30]} 22...Kf6 {[%clk 00:03:35] [%emt
00:00:32]} 23.Rcd1 {[%clk 00:05:22] [%emt 00:04:55]} 23...Bc4 {[%clk 00:02:56]
[%emt 00:01:09]} 24.f3 {[%clk 00:01:20] [%emt 00:04:32]} 24...Bxa2 {[%emt
00:02:20]} 25.fxe4 {[%clk 00:01:21] [%emt 00:00:29]} 25...fxe4 {[%clk 00:01:33]
[%emt 00:00:04]} 26.Nc6 {[%clk 00:00:34] [%emt 00:01:18]} 26...e3 {[%clk
00:00:37] [%emt 00:01:25]} 27.Na5 {[%clk 00:01:02]} 27...Re4 {[%clk 00:00:53]
[%emt 00:00:13]} 28.b3 {[%clk 00:00:48] [%emt 00:00:45]} 28...Nxc3 {[%clk
00:00:55] [%emt 00:00:28]} 29.Rd3 {[%clk 00:01:15] [%emt 00:00:04]} 29...b4 
{[%clk 00:01:07] [%emt 00:00:18]} 30.c6 {[%clk 00:01:08] [%emt 00:00:36]} 
30...Nb5 {[%clk 00:01:07] [%emt 00:00:31]} 31.Bc5 {[%clk 00:00:41] [%emt
00:00:57]} 31...e2 {[%clk 00:00:41] [%emt 00:00:56]} 32.Rd2 {[%clk 00:00:52]
[%emt 00:00:19]} 32...Bb1 {[%clk 00:00:47] [%emt 00:00:23]} 33.Rdxe2 {[%clk
00:00:54] [%emt 00:00:29]} 33...Rxe2 {[%clk 00:01:08] [%emt 00:00:10]} 34.Rxe2 
{[%clk 00:01:20] [%emt 00:00:03]} 34...Rc8 {[%clk 00:01:26] [%emt 00:00:12]} 
35.Bxb4 {[%clk 00:01:03] [%emt 00:00:47]} 35...Kf5 {[%clk 00:00:53] [%emt
00:01:03]} 36.Nc4 {[%clk 00:00:36] [%emt 00:00:57]} 36...Rxc6 {[%clk 00:00:43]
[%emt 00:00:40]} 37.Re5+ {[%clk 00:00:36] [%emt 00:00:31]} 37...Kf6 {[%clk
00:00:42] [%emt 00:00:30]} 38.Be7+ {[%clk 00:00:55] [%emt 00:00:10]} 38...Kf7 
{[%clk 00:00:46] [%emt 00:00:27]} 39.Bxg5 {[%clk 00:01:21] [%emt 00:00:04]} 
39...Re6 {[%clk 00:00:56] [%emt 00:00:20]} 40.Rc5 {[%clk 00:01:43] [%emt
00:00:07]} 40...Re2 {[%clk 00:00:45] [%emt 00:00:42]} 41.Be3 {[%clk 00:35:51]
[%emt 00:16:21]} 41...Be4 {[%clk 00:41:45] [%emt 00:09:29]} 42.Bf2 {[%clk
00:27:10] [%emt 00:09:12]} 42...Rc2 {[%clk 00:38:10] [%emt 00:04:04]} 43.h4 
{[%clk 00:24:04] [%emt 00:03:36]} 43...Rc1+ {[%clk 00:29:33] [%emt 00:09:07]} 
44.Kh2 {[%clk 00:23:35] [%emt 00:00:59]} 44...Rc2 {[%clk 00:28:48] [%emt
00:01:15]} 45.Rxb5 {[%clk 00:12:09] [%emt 00:11:57]} 45...axb5 {[%clk 00:27:34]
[%emt 00:01:44]} 46.Nd6+ {[%clk 00:12:34] [%emt 00:00:05]} 46...Kg6 {[%clk
00:22:34] [%emt 00:05:29]} 47.Nxe4 {[%clk 00:12:35] [%emt 00:00:29]} 47...Rb2 
{[%clk 00:22:59] [%emt 00:00:05]} 48.Kg3 {[%clk 00:10:20] [%emt 00:02:45]} 
48...Rxb3+ {[%clk 00:23:13] [%emt 00:00:17]} 49.Kf4 {[%clk 00:10:08] [%emt
00:00:41]} 49...h5 {[%clk 00:18:04] [%emt 00:05:39]} 50.Bd4 {[%clk 00:06:57]
[%emt 00:03:40]} 50...b4 {[%clk 00:14:00] [%emt 00:04:35]} 51.Nc5 {[%clk
00:05:18] [%emt 00:02:09]} 51...Rb1 {[%clk 00:13:49] [%emt 00:00:40]} 52.Nd3 
{[%clk 00:05:23] [%emt 00:00:26]} 52...b3 {[%clk 00:13:37] [%emt 00:00:42]} 
53.g3 {[%clk 00:01:32] [%emt 00:04:21]} 53...Rd1 {[%clk 00:12:30] [%emt
00:01:37]} 54.Ke4 {[%clk 00:01:44] [%emt 00:00:18]} 54...Rd2 {[%clk 00:10:23]
[%emt 00:02:38]} 55.Ne5+ {[%clk 00:00:51] [%emt 00:01:23]} 55...Kh7 {[%clk
00:10:16] [%emt 00:00:35]} 56.Nc4 {[%clk 00:01:09] [%emt 00:00:13]} 56...Rg2 
{[%clk 00:02:34] [%emt 00:08:12]} 57.Be5 {[%clk 00:01:31] [%emt 00:00:07]} 
57...Kg6 {[%clk 00:02:12] [%emt 00:00:52]} 58.Kd3 {[%clk 00:01:51] [%emt
00:00:10]} 58...Rf2 {[%clk 00:01:52] [%emt 00:00:50]} 59.Kc3 {[%clk 00:00:48]
[%emt 00:01:34]} 59...Kf5 {[%clk 00:00:42] [%emt 00:01:41]} 60.Kxb3 {[%clk
00:00:36] [%emt 00:00:42]} 60...Rf3+ {[%clk 00:00:54] [%emt 00:00:17]} 61.Kc2 
{[%clk 00:00:47] [%emt 00:00:19]} 61...Kg4 {[%clk 00:01:03] [%emt 00:00:21]} 
62.Kd2 {[%clk 00:00:50] [%emt 00:00:27]} 62...Rxg3 {[%clk 00:00:58] [%emt
00:00:35]} 63.Bxg3 {[%clk 00:01:13] [%emt 00:00:07]} 63...Kxg3 {[%clk 00:01:24]
[%emt 00:00:04]} 64.Ke3 {[%clk 00:01:37] [%emt 00:00:06]} 64...Kxh4 {[%clk
00:01:49] [%emt 00:00:05]} 65.Kf4 {[%clk 00:02:03] [%emt 00:00:04]} 65...Kh3 
{[%clk 00:02:14] [%emt 00:00:05]} 66.Ne3 {[%clk 00:02:27] [%emt 00:00:06]} 
66...Kh2 {[%clk 00:02:29] [%emt 00:00:15]} 67.Kf3 {[%clk 00:02:52]} 1/2-1/2

[Event "FIDE Grand Swiss 2023"]
[Site "Villa Marina, Douglas, Isle of Man"]
[Date "2023.10.30"]
[Round "6.5"]
[White "Yakubboev, Nodirbek"]
[Black "Keymer, Vincent"]
[Result "1/2-1/2"]
[WhiteElo "2616"]
[BlackElo "2717"]
[EventDate "2023.10.25"]
[ECO "E12"]
[PlyCount "88"]
[BlackFideId "12940690"]
[TimeControl "40/100 + 20/50 + 15 + 30s/move"]
[WhiteFideId "14203987"]

1.d4 {[%clk 01:40:01] [%emt 00:00:47]} 1...Nf6 {[%clk 01:40:57] [%emt 00:00:15]} 
2.c4 {[%clk 01:40:24] [%emt 00:00:07]} 2...e6 {[%clk 01:41:23] [%emt 00:00:04]} 
3.Nf3 {[%clk 01:40:50] [%emt 00:00:04]} 3...b6 {[%clk 01:41:49] [%emt 00:00:04]} 
4.a3 {[%clk 01:33:21] [%emt 00:07:59]} 4...Bb7 {[%clk 01:41:42] [%emt 00:00:37]} 
5.Nc3 {[%clk 01:33:30] [%emt 00:00:21]} 5...d5 {[%clk 01:41:49] [%emt 00:00:23]} 
6.cxd5 {[%clk 01:33:27] [%emt 00:00:33]} 6...Nxd5 {[%clk 01:42:12] [%emt
00:00:06]} 7.Qc2 {[%clk 01:26:44] [%emt 00:07:13]} 7...c5 {[%clk 01:40:46] [%emt
00:01:57]} 8.e4 {[%clk 01:25:28] [%emt 00:01:45]} 8...Nxc3 {[%clk 01:41:07]
[%emt 00:00:10]} 9.bxc3 {[%clk 01:25:56] [%emt 00:00:01]} 9...Nd7 {[%clk
01:41:26] [%emt 00:00:11]} 10.Bd3 {[%clk 01:25:01] [%emt 00:01:25]} 10...Qc7 
{[%clk 01:41:44] [%emt 00:00:13]} 11.Qb1 {[%clk 01:17:10] [%emt 00:08:21]} 
11...Be7 {[%clk 01:36:15] [%emt 00:05:59]} 12.O-O {[%clk 01:16:26] [%emt
00:01:14]} 12...O-O {[%clk 01:32:55] [%emt 00:03:50]} 13.Ra2 {[%clk 01:14:20]
[%emt 00:02:36]} 13...h6 {[%clk 01:20:51] [%emt 00:12:34]} 14.Re2 {[%clk
00:57:58] [%emt 00:16:52]} 14...a6 {[%clk 01:16:46] [%emt 00:04:35]} 15.a4 
{[%clk 00:55:28] [%emt 00:03:01]} 15...Rab8 {[%clk 01:13:35] [%emt 00:03:40]} 
16.Rfe1 {[%clk 00:50:16] [%emt 00:05:40]} 16...c4 {[%clk 01:00:36] [%emt
00:13:32]} 17.Bc2 {[%clk 00:50:36] [%emt 00:00:08]} 17...b5 {[%clk 01:00:32]
[%emt 00:00:34]} 18.axb5 {[%clk 00:37:38] [%emt 00:13:29]} 18...axb5 {[%clk
01:00:22] [%emt 00:00:40]} 19.g3 {[%clk 00:32:25] [%emt 00:05:42]} 19...Bd6 
{[%clk 00:49:48] [%emt 00:11:05]} 20.d5 {[%clk 00:28:43] [%emt 00:04:13]} 
20...e5 {[%clk 00:44:07] [%emt 00:06:10]} 21.Nh4 {[%clk 00:28:46] [%emt
00:00:27]} 21...b4 {[%clk 00:43:12] [%emt 00:01:26]} 22.cxb4 {[%clk 00:27:51]
[%emt 00:01:24]} 22...Bc8 {[%clk 00:40:03] [%emt 00:03:38]} 23.Ba3 {[%clk
00:25:28] [%emt 00:02:54]} 23...Nf6 {[%clk 00:37:58] [%emt 00:02:35]} 24.Qb2 
{[%clk 00:21:19] [%emt 00:04:38]} 24...Bg4 {[%clk 00:29:45] [%emt 00:08:43]} 
25.Re3 {[%clk 00:16:13] [%emt 00:05:37]} 25...Bc5 {[%clk 00:25:30] [%emt
00:04:45]} 26.bxc5 {[%clk 00:16:05] [%emt 00:00:37]} 26...Rxb2 {[%clk 00:25:57]
[%emt 00:00:04]} 27.Bxb2 {[%clk 00:16:32] [%emt 00:00:02]} 27...Qxc5 {[%clk
00:26:17] [%emt 00:00:11]} 28.Bxe5 {[%clk 00:16:35] [%emt 00:00:27]} 28...Ra8 
{[%clk 00:24:09] [%emt 00:02:38]} 29.Kg2 {[%clk 00:15:08] [%emt 00:01:57]} 
29...Ra2 {[%clk 00:13:57] [%emt 00:10:42]} 30.Bb1 {[%clk 00:15:11] [%emt
00:00:27]} 30...Ra3 {[%clk 00:14:21] [%emt 00:00:06]} 31.h3 {[%emt 00:08:43]} 
31...Rxe3 {[%clk 00:14:42] [%emt 00:00:04]} 32.Rxe3 {[%emt 00:00:57]} 32...Nd7 
{[%emt 00:01:10]} 33.Bc3 {[%emt 00:00:09]} 33...Bd1 {[%emt 00:04:44]} 34.e5 
{[%emt 00:00:38]} 34...Qxd5+ {[%clk 00:14:30] [%emt 00:00:02]} 35.Be4 {[%emt
00:02:07]} 35...Qe6 {[%emt 00:01:09]} 36.Bf5 {[%emt 00:00:05]} 36...Qc6+ {[%clk
00:13:18] [%emt 00:00:03]} 37.Be4 {[%emt 00:03:04]} 37...Qc7 {[%emt 00:02:56]} 
38.Nf5 {[%emt 00:00:25]} 38...Nc5 {[%emt 00:00:25]} 39.Bd5 {[%emt 00:01:44]} 
39...Ba4 {[%emt 00:01:19]} 40.Kh2 {[%emt 00:06:51]} 40...Ne6 {[%emt 00:01:29]} 
41.Nd6 {[%emt 00:11:04]} 41...Bb3 {[%clk 00:40:30] [%emt 00:00:02]} 42.Bf3 
{[%clk 00:38:18] [%emt 00:13:03]} 42...Qa7 {[%clk 00:19:39] [%emt 00:21:22]} 
43.h4 {[%clk 00:30:35] [%emt 00:08:12]} 43...Qa2 {[%clk 00:17:30] [%emt
00:02:40]} 44.Kg2 {[%clk 00:30:53] [%emt 00:00:11]} 44...Qb1 {[%clk 00:11:31]
[%emt 00:06:30]} 1/2-1/2